fUST/lending_fUST_20240705
["ID","MTS","AMOUNT","RATE_DAILY","PERIOD"]
[331224480,1720141750766,-231.70505551,0.00025911,2]
[331224481,1720141750786,-153.15732193,0.00025957,2]
[331224482,1720141750808,-162.60257824,0.00026123,2]
[331224483,1720141750828,-194.8120331,0.0002616,2]
[331224484,1720141750849,-194.8120331,0.00026211,2]
[331224485,1720141750874,-150.90270469,0.00026424,2]
[331224486,1720141750896,-150.0,0.000265,2]
[331224487,1720141750920,-231.70505551,0.00026621,2]
[331224488,1720141750942,-150.90270469,0.00026817,2]
[331224489,1720141750964,-166.76986611,0.00026823,2]
[331224490,1720141750986,-231.70505551,0.00026911,2]
[331224491,1720141751006,-150.28023264,0.00026937,2]
[331224492,1720141751026,-162.60257824,0.00027132,2]
[331224493,1720141751046,-162.60257824,0.00027134,2]
[331224494,1720141751070,-162.60257824,0.0002714,2]
[331224495,1720141751090,-661.265051,0.00027195,2]
[331224496,1720141751109,-245.732475,0.00027195,2]
[331224497,1720141751129,-162.60257824,0.00027378,2]
[331224498,1720141751150,-255.060075,0.00027397,120]
[331224499,1720141751169,-175.15240402,0.000274,2]
[331224500,1720141751190,-150.28023264,0.00027418,2]
[331224501,1720141751210,-194.8120331,0.00027424,2]
[331224502,1720141751230,-153.15732193,0.00027559,2]
[331224503,1720141751251,-186.61507,0.00027704,2]
[331224504,1720141751272,-174.096833,0.00027704,2]
[331224505,1720141751292,-186.615069,0.00027704,2]
[331224506,1720141751317,-174.096832,0.00027704,2]
[331224507,1720141751337,-174.096833,0.00027704,2]
[331224508,1720141751358,-186.615071,0.00027704,2]
[331224509,1720141751378,-159.45169496,0.00027886,2]
[331224510,1720141751398,-166.76986611,0.0002793,2]
[331224511,1720141751418,-30000.0,0.00027999,2]
[331224512,1720141751438,-268.302861,0.00028,2]
[331224513,1720141751460,-154.5308481,0.0002807,2]
[331224514,1720141751481,-231.70505551,0.00028731,2]
[331224515,1720141751502,-150.28023264,0.00028995,2]
[331224516,1720141751522,-231.70505551,0.00029022,2]
[331224517,1720141751542,-150.28023264,0.00029045,2]
[331224518,1720141751565,-150.28023264,0.00029059,2]
[331224519,1720141751586,-174.096833,0.0002909,2]
[331224520,1720141751606,-186.615069,0.0002909,2]
[331224521,1720141751626,-174.096832,0.0002909,2]
[331224522,1720141751646,-154.5308481,0.00029191,2]
[331224523,1720141751666,-154.5308481,0.00029396,2]
[331224524,1720141751687,-231.70505551,0.00029531,2]
[331224525,1720141751707,-150.23442167,0.00029546,30]
[331224526,1720141751727,-154.5308481,0.00029551,2]
[331224527,1720141751746,-153.15732193,0.0002957,2]
[331224528,1720141751767,-153.15732193,0.00029635,2]
[331224529,1720141751787,-162.60257824,0.00029693,2]
[331224530,1720141751809,-154.5308481,0.00029767,2]
[331224531,1720141751831,-2065.47301944,0.00029783,3]
[331224532,1720141751855,-284.22260059,0.0003,3]
[331224533,1720141751874,-642.76034266,0.0003,4]
[331224534,1720141751894,-202.0,0.0003,2]
[331224535,1720141751915,-150.90270469,0.00030121,7]
[331224536,1720141751936,-162.60257824,0.00030336,7]
[331224537,1720141751957,-154.5308481,0.00030455,7]
[331224538,1720141751977,-153.15732193,0.00030482,7]
[331224539,1720141751997,-166.76986611,0.000305,7]
[331224540,1720141752017,-154.5308481,0.000308,7]
[331224541,1720141752040,-159.45169496,0.0003109,7]
[331224542,1720141752062,-150.90270469,0.00031159,7]
[331224543,1720141752082,-194.8120331,0.00031679,7]
[331224544,1720141752101,-255.060075,0.00031963,120]
[331224545,1720141752121,-231.70505551,0.00031968,7]
[331224546,1720141752141,-194.8120331,0.00032374,7]
[331224547,1720141752161,-150.28023264,0.00032389,7]
[331224548,1720141752180,-807.59833872,0.000325,60]
[331224549,1720141752199,-194.8120331,0.00032562,7]
[331224550,1720141752219,-159.45169496,0.00032606,7]
[331224551,1720141752240,-231.70505551,0.00032684,7]
[331224552,1720141752261,-194.8120331,0.00032848,7]
[331224553,1720141752283,-202.0,0.00033,2]
[331224554,1720141752306,-661.265051,0.00033295,2]
[331224555,1720141752325,-245.732475,0.00033295,2]
[331224556,1720141752345,-150.28023264,0.00033313,7]
[331224557,1720141752366,-154.5308481,0.00033533,7]
[331224558,1720141752385,-153.15732193,0.00033574,7]
[331224559,1720141752404,-150.90270469,0.00033655,7]
[331224560,1720141752425,-4130.94603888,0.00033732,4]
[331224561,1720141752445,-11615.40405918,0.00033742,5]
[331224562,1720141769884,-2474.00852435,0.00027184,2]
[331224564,1720141774148,-27525.99147565,0.00027184,2]
[331224565,1720141774169,-1461.37895736,0.00033647,2]
[331224566,1720141774189,-25374.78,0.00033732,3]
[331224567,1720141774210,-203.0,0.00033742,2]
[331224568,1720141774229,-4694.18568329,0.00033742,5]
[331224569,1720141783526,3637.143819,0.00016968,2]
[331224741,1720141839178,-172.20625098,0.00016253,2]
[331224743,1720141839189,-57212.27342122,0.00016254,2]
[331224744,1720141839200,-17247.35351992,0.00016968,2]
[331224746,1720141839210,-42225.49623484,0.00016968,2]
[331224748,1720141839220,-3078.51196359,0.00016968,2]
[331224750,1720141839231,-154.80649189,0.00016968,2]
[331224751,1720141839241,-276.41710019,0.00016968,2]
[331224752,1720141839252,-52100.0,0.000198,2]
[331224753,1720141839262,-173.04695508,0.00020467,2]
[331224754,1720141839273,-30000.0,0.00020567,2]
[331224755,1720141839283,-1597.25650539,0.00020567,3]
[331224756,1720141839294,-1634.59229075,0.00020567,2]
[331224757,1720141839304,-1116.93849339,0.00020567,2]
[331224758,1720141839315,-4710.72024946,0.00020567,2]
[331224759,1720141839325,-879.22437591,0.0002217,2]
[331224760,1720141839335,-150.0,0.00029547,7]
[331224761,1720141839346,-150.0,0.00029547,7]
[331224762,1720141839356,-200.0,0.00029547,7]
[331224763,1720141839366,-20246.47,0.00033722,3]
[331224764,1720141839376,-72578.41025753,0.00033742,5]
[331224765,1720141839388,-231.70505551,0.00033747,7]
[331224766,1720141839567,-150.0,0.00033753,2]
[331224767,1720141839578,-154.5308481,0.00033822,7]
[331224768,1720141839588,-231.70505551,0.00033853,7]
[331224769,1720141839599,-150.28023264,0.00033874,7]
[331224770,1720141839609,-194.8120331,0.00033954,7]
[331224771,1720141839619,-162.60257824,0.00033989,7]
[331224772,1720141839629,-1000.0,0.00034,120]
[331224773,1720141839639,-153.15732193,0.00034249,7]
[331224774,1720141839649,-150.28023264,0.00034263,7]
[331224775,1720141839659,-194.8120331,0.00034515,7]
[331224776,1720141839669,-194.8120331,0.00034584,7]
[331224777,1720141839679,-154.5308481,0.00034597,7]
[331224778,1720141839689,-2846.16753048,0.0003468,4]
[331224779,1720141839699,-2316.77149531,0.0003468,4]
[331224780,1720141839710,-3252.18893663,0.0003468,4]
[331224781,1720141839720,-231.70505551,0.0003471,7]
[331224782,1720141839729,-159.45169496,0.00034957,7]
[331224783,1720141839740,-1313.3039651,0.00035,4]
[331224784,1720141839750,-159.45169496,0.00035156,7]
[331224785,1720141839760,-231.70505551,0.00035276,7]
[331224786,1720141839770,-1966.04116909,0.00035292,4]
[331224787,1720141839780,-4130.94603888,0.00035606,4]
[331224788,1720141839790,-16872.06,0.00035616,3]
[331224789,1720141839799,-150.90270469,0.0003571,7]
[331224790,1720141839809,-877.0,0.00035727,2]
[331224791,1720141839820,-162.60257824,0.00035788,7]
[331224792,1720141839830,-194.8120331,0.00035946,7]
[331224793,1720141839839,-150.90270469,0.00036012,7]
[331224794,1720141839849,-153.15732193,0.00036018,7]
[331224795,1720141839859,-194.8120331,0.0003626,7]
[331224796,1720141839875,-162.60257824,0.00036265,7]
[331224797,1720141839887,-153.15732193,0.00036312,7]
[331224798,1720141839901,-231.70505551,0.0003645,7]
[331224799,1720141839910,-153.15732193,0.00036508,7]
[331224800,1720141839920,-255.060075,0.0003653,120]
[331224801,1720141839930,-153.15732193,0.00036624,7]
[331224802,1720141839942,-150.0,0.00036753,2]
[331224803,1720141839952,-162.60257824,0.0003679,7]
[331224804,1720141839962,-153.15732193,0.00036967,7]
[331224805,1720141839973,-154.82195475,0.00037,4]
[331224806,1720141839984,-150.90270469,0.00037193,7]
[331224807,1720141839997,-231.70505551,0.00037235,7]
[331224808,1720141840007,-150.90270469,0.00037544,7]
[331224809,1720141840017,-231.70505551,0.00037744,7]
[331224810,1720141840027,-1091.34939429,0.00037807,21]
[331224811,1720141840037,-153.15732193,0.00037894,7]
[331224812,1720141840046,-471.22669351,0.00037899,4]
[331224813,1720141840056,-166.76986611,0.00037924,7]
[331224814,1720141840066,-1039.06688618,0.00037999,2]
[331224815,1720141840076,-358.53020275,0.00038,120]
[331224816,1720141840086,-194.8120331,0.00038127,7]
[331224817,1720141840096,-789.77698638,0.00038264,4]
[331224818,1720141840105,-159.27156103,0.00038269,7]
[331224819,1720141840116,-194.8120331,0.00038346,7]
[331224820,1720141840126,-509.97923553,0.00038499,4]
[331224821,1720141840139,-231.70505551,0.00038547,7]
[331224822,1720141840148,-231.70505551,0.00038563,7]
[331224823,1720141840158,-194.8120331,0.0003872,7]
[331224824,1720141840168,-877.0,0.00038727,2]
[331224825,1720141840178,-2065.47301944,0.00038989,5]
[331224826,1720141840188,-372.24062171,0.00039167,2]
[331224827,1720141840198,-215.09979109,0.00039177,4]
[331224828,1720141840207,-150.28023264,0.0003919,7]
[331224829,1720141840216,-154.80649189,0.000392,10]
[331224830,1720141840227,-154.5308481,0.0003924,7]
[331224831,1720141840236,-162.60257824,0.00039374,7]
[331224832,1720141840246,-194.8120331,0.0003938,7]
[331224833,1720141840256,-154.83742071,0.00039393,4]
[331224834,1720141840266,-661.265051,0.00039394,2]
[331224835,1720141840276,-245.732475,0.00039394,2]
[331224836,1720141840286,-162.60257824,0.00039641,7]
[331224837,1720141840296,-153.15732193,0.00039755,7]
[331224838,1720141840305,-162.60257824,0.00039822,7]
[331224839,1720141840315,-153.15732193,0.00039879,7]
[331224840,1720141840325,-231.70505551,0.00039953,7]
[331224841,1720141840336,-382.10663872,0.00039994,30]
[331224842,1720141840346,-3989.95425843,0.00039999,4]
[331224843,1720141840355,-173.65367609,0.00039999,4]
[331224844,1720141840365,-302.37435633,0.00039999,4]
[331224845,1720141840374,-3000.0,0.0004,120]
[331224846,1720141840389,-151.0,0.0004,120]
[331224847,1720141840399,-151.0,0.0004,120]
[331224848,1720141840409,-154.5308481,0.00040039,30]
[331224849,1720141840418,-154.5308481,0.00040201,30]
[331224850,1720141840428,-276.78106003,0.00040229,4]
[331224851,1720141840437,-194.8120331,0.00040245,30]
[331224852,1720141840447,-231.70505551,0.00040273,30]
[331224853,1720141840457,-162.60257824,0.00040407,30]
[331224854,1720141840466,-150.28023264,0.00040466,30]
[331224855,1720141840476,-231.70505551,0.00040497,30]
[331224856,1720141840485,-162.60257824,0.00040979,30]
[331224857,1720141840495,-162.60257824,0.00041027,30]
[331224858,1720141840505,-154.5308481,0.00041091,30]
[331224859,1720141840514,-255.060075,0.00041096,120]
[331224860,1720141840524,-10377.09403866,0.00041101,31]
[331224861,1720141840534,-4130.94603888,0.00041101,5]
[331224862,1720141840543,-82000.421069,0.00041111,2]
[331224863,1720141840553,-231.70505551,0.00041562,30]
[331224864,1720141840562,-162.60257824,0.00041664,30]
[331224865,1720141840572,-194.8120331,0.00041677,30]
[331224866,1720141840581,-151.0,0.00041726,120]
[331224867,1720141840590,-877.0,0.00041727,2]
[331224868,1720141840599,-194.8120331,0.00041739,30]
[331224869,1720141840609,-159.45169496,0.00041844,30]
[331224870,1720141840618,-166.76986614,0.00041903,30]
[331224871,1720141840630,-1000.0,0.00042,120]
[331224872,1720141840640,-175.65987417,0.00042052,30]
[331224873,1720141840650,-231.70505551,0.000425,30]
[331224874,1720141840659,-175.65987417,0.00042915,30]
[331224875,1720141840669,-153.15732193,0.00043292,30]
[331224876,1720141840678,-162.60257824,0.00043311,30]
[331224877,1720141840687,-231.70505551,0.00043321,30]
[331224878,1720141840697,-151.0,0.00043452,120]
[331224879,1720141840707,-194.8120331,0.00043503,30]
[331224880,1720141840716,-153.15732193,0.00043659,30]
[331224881,1720141840726,-231.70505551,0.00043782,30]
[331224882,1720141840737,-150.90270469,0.00043997,30]
[331224883,1720141840747,-154.5308481,0.00044009,30]
[331224884,1720141840756,-194.8120331,0.00044176,30]
[331224885,1720141840766,-159.27156103,0.00044184,30]
[331224886,1720141840775,-153.15732193,0.00044257,30]
[331224887,1720141840785,-154.5308481,0.000445,30]
[331224888,1720141840794,-194.8120331,0.00044537,30]
[331224889,1720141840804,-150.90270469,0.00044606,30]
[331224890,1720141840814,-162.60257824,0.00044641,30]
[331224891,1720141840824,-877.0,0.00044727,2]
[331224892,1720141840833,-159.45169496,0.0004482,30]
[331224893,1720141840842,-150.90270469,0.00045173,30]
[331224894,1720141840851,-151.0,0.00045178,120]
[331224895,1720141840860,-154.5308481,0.00045261,30]
[331224896,1720141840870,-661.265051,0.00045494,2]
[331224897,1720141840885,-245.732475,0.00045494,2]
[331224898,1720141840894,-159.45169496,0.00045677,30]
[331224899,1720141840904,-150.90270471,0.00045725,30]
[331224900,1720141840914,-159.27156103,0.00045916,30]
[331224901,1720141840923,-162.60257824,0.00045925,30]
[331224902,1720141840933,-194.8120331,0.00046281,30]
[331224903,1720141840944,-150.28023279,0.00046649,30]
[331224904,1720141840955,-231.70505551,0.00046649,30]
[331224905,1720141840967,-231.70505551,0.0004665,30]
[331224906,1720141840977,-153.15732206,0.00046865,30]
[331224907,1720141840986,-151.0,0.00046904,120]
[331224908,1720141840995,-231.70505551,0.00046998,30]
[331224909,1720141841004,-176.0,0.00047,90]
[331224910,1720141841014,-231.70505551,0.0004703,30]
[331224912,1720141841023,-194.8120331,0.00047297,30]
[331224914,1720141841032,-877.0,0.00047727,2]
[331224916,1720141841042,-154.5308481,0.00047731,30]
[331224918,1720141841051,-194.8120331,0.00047813,30]
[331224920,1720141841061,-3115.7,0.00048,120]
[331224921,1720141841070,-154.53084812,0.00048244,30]
[331224923,1720141841079,-151.0,0.0004863,120]
[331224924,1720141841090,-162.60257846,0.00048633,30]
[331224925,1720141841099,-175.65987418,0.0004868,30]
[331224926,1720141841108,-159.45169496,0.00048896,30]
[331224927,1720141841118,-176.0,0.00048904,90]
[331224928,1720141841127,-156.0,0.00049,90]
[331224929,1720141841138,-231.70505573,0.00049065,30]
[331224930,1720141841147,-1298.52870603,0.00049278,62]
[331224931,1720141841156,-154.80649189,0.00049305,4]
[331224932,1720141841165,-221.53308225,0.00049305,4]
[331224933,1720141841175,-1464.88195694,0.00049305,4]
[331224934,1720141841185,-193.39153138,0.00049305,4]
[331224935,1720141841195,-14458.3111361,0.00049305,6]
[331224936,1720141841204,-500.0,0.00049315,120]
[331224937,1720141841214,-579.72,0.00049315,120]
[331224938,1720141841223,-500.0,0.00049315,120]
[331224939,1720141841233,-500.0,0.00049315,60]
[331224940,1720141841242,-614.92457479,0.00049315,120]
[331224941,1720141841252,-500.0,0.00049315,120]
[331224942,1720141841262,-500.0,0.00049315,120]
[331224943,1720141841271,-522.15,0.00049315,120]
[331224944,1720141841280,-500.0,0.00049315,120]
[331224945,1720141841289,-500.0,0.00049315,120]
[331224946,1720141841299,-500.0,0.00049315,120]
[331224947,1720141841308,-500.0,0.00049315,120]
[331224948,1720141841317,-500.0,0.00049315,120]
[331224949,1720141841327,-500.0,0.00049315,120]
[331224950,1720141841336,-500.0,0.00049315,120]
[331224951,1720141841347,-500.0,0.00049315,120]
[331224952,1720141841356,-500.0,0.00049315,120]
[331224953,1720141841365,-500.0,0.00049315,120]
[331224954,1720141841374,-345.21076198,0.00049315,10]
[331224955,1720141841388,-500.07054151,0.00049315,120]
[331224956,1720141841398,-500.0,0.00049315,120]
[331224957,1720141841408,-500.0,0.00049315,120]
[331224958,1720141841418,-500.0,0.00049315,120]
[331224959,1720141841427,-500.0,0.00049315,120]
[331224960,1720141841437,-500.0,0.00049315,120]
[331224962,1720141841446,-212.79590257,0.00049315,120]
[331224964,1720141841455,-435.07673899,0.00049315,120]
[331224965,1720141841465,-500.0,0.00049315,120]
[331224966,1720141841474,-504.1655653,0.00049315,120]
[331224967,1720141841483,-500.0,0.00049315,120]
[331224968,1720141841492,-500.0,0.00049315,120]
[331224969,1720141841501,-500.0,0.00049315,120]
[331224970,1720141841511,-500.0,0.00049315,120]
[331224971,1720141841520,-507.48932387,0.00049315,120]
[331224972,1720141841529,-500.0,0.00049315,120]
[331224973,1720141841539,-500.0,0.00049315,120]
[331224974,1720141841548,-500.0,0.00049315,120]
[331224975,1720141841557,-509.64652439,0.00049315,120]
[331224976,1720141841566,-512.11720004,0.00049315,120]
[331224977,1720141841575,-500.0,0.00049315,120]
[331224978,1720141841584,-500.0,0.00049315,120]
[331224979,1720141841594,-500.0,0.00049315,120]
[331224980,1720141841603,-503.28398581,0.00049315,120]
[331224981,1720141841612,-500.0,0.00049315,2]
[331224982,1720141841621,-500.0,0.00049315,120]
[331224983,1720141841632,-500.0,0.00049315,30]
[331224984,1720141841641,-500.0,0.00049315,120]
[331224985,1720141841650,-500.0,0.00049315,120]
[331224986,1720141841659,-500.0,0.00049315,120]
[331224987,1720141841668,-500.0,0.00049315,120]
[331224988,1720141841677,-500.0,0.00049315,120]
[331224989,1720141841687,-500.0,0.00049315,30]
[331224990,1720141841695,-500.0,0.00049315,120]
[331224991,1720141841704,-563.20368314,0.00049315,120]
[331224992,1720141841713,-500.0,0.00049315,120]
[331224993,1720141841722,-500.0,0.00049315,120]
[331224994,1720141841731,-500.0,0.00049315,120]
[331224995,1720141841741,-506.02831109,0.00049315,120]
[331224996,1720141841750,-500.0,0.00049315,120]
[331224997,1720141841760,-1046.54093284,0.00049315,120]
[331224998,1720141841769,-509.08828841,0.00049315,120]
[331224999,1720141841778,-500.0,0.00049315,120]
[331225000,1720141841787,-633.99836362,0.00049315,120]
[331225001,1720141841797,-500.0,0.00049315,120]
[331225002,1720141841806,-500.0,0.00049315,120]
[331225003,1720141841815,-511.80301093,0.00049315,120]
[331225004,1720141841824,-500.0,0.00049315,120]
[331225005,1720141841834,-323.78917096,0.00049315,120]
[331225006,1720141841843,-500.0,0.00049315,120]
[331225007,1720141841852,-500.0,0.00049315,120]
[331225008,1720141841861,-500.0,0.00049315,120]
[331225009,1720141841871,-500.0,0.00049315,120]
[331225010,1720141841882,-500.0,0.00049315,120]
[331225011,1720141841892,-500.0,0.00049315,120]
[331225012,1720141841904,-500.0,0.00049315,120]
[331225013,1720141841913,-500.0,0.00049315,120]
[331225014,1720141841922,-502.24248115,0.00049315,120]
[331225015,1720141841932,-500.0,0.00049315,120]
[331225016,1720141841945,-500.0,0.00049315,120]
[331225017,1720141841954,-500.0,0.00049315,120]
[331225018,1720141841965,-500.0,0.00049315,120]
[331225019,1720141841975,-500.0,0.00049315,120]
[331225020,1720141842077,-500.0,0.00049315,120]
[331225021,1720141842087,-500.0,0.00049315,120]
[331225022,1720141842096,-500.0,0.00049315,120]
[331225023,1720141842106,-500.0,0.00049315,120]
[331225024,1720141842115,-500.0,0.00049315,120]
[331225025,1720141842127,-500.0,0.00049315,120]
[331225026,1720141842137,-500.0,0.00049315,120]
[331225027,1720141842146,-500.0,0.00049315,120]
[331225028,1720141842155,-500.0,0.00049315,120]
[331225029,1720141842164,-500.0,0.00049315,120]
[331225030,1720141842174,-500.0,0.00049315,120]
[331225031,1720141842184,-500.0,0.00049315,120]
[331225032,1720141842193,-500.0,0.00049315,120]
[331225033,1720141842203,-500.0,0.00049315,120]
[331225034,1720141842212,-500.0,0.00049315,120]
[331225035,1720141842221,-500.0,0.00049315,120]
[331225036,1720141842230,-500.0,0.00049315,120]
[331225037,1720141842240,-500.0,0.00049315,120]
[331225038,1720141842249,-500.0,0.00049315,120]
[331225039,1720141842258,-500.0,0.00049315,120]
[331225040,1720141842267,-503.97921124,0.00049315,120]
[331225041,1720141842276,-500.0,0.00049315,120]
[331225042,1720141842286,-547.49987822,0.00049315,120]
[331225043,1720141842295,-500.0,0.00049315,120]
[331225044,1720141842304,-500.0,0.00049315,120]
[331225045,1720141842313,-500.0,0.00049315,120]
[331225046,1720141842322,-500.0,0.00049315,120]
[331225047,1720141842332,-500.0,0.00049315,120]
[331225048,1720141842343,-500.0,0.00049315,120]
[331225049,1720141842352,-500.0,0.00049315,120]
[331225050,1720141842362,-500.0,0.00049315,120]
[331225051,1720141842371,-500.0,0.00049315,120]
[331225052,1720141842385,-500.0,0.00049315,120]
[331225053,1720141842394,-500.0,0.00049315,120]
[331225054,1720141842404,-500.0,0.00049315,120]
[331225055,1720141842413,-502.85390843,0.00049315,120]
[331225056,1720141842423,-500.0,0.00049315,120]
[331225057,1720141842436,-500.0,0.00049315,120]
[331225058,1720141842445,-500.0,0.00049315,120]
[331225059,1720141842455,-500.0,0.00049315,120]
[331225060,1720141842464,-500.0,0.00049315,120]
[331225061,1720141842474,-500.0,0.00049315,120]
[331225062,1720141842483,-500.0,0.00049315,120]
[331225063,1720141842492,-500.0,0.00049315,120]
[331225064,1720141842502,-548.60034409,0.00049315,120]
[331225065,1720141842511,-500.0,0.00049315,120]
[331225066,1720141842521,-186.2083572,0.00049315,120]
[331225067,1720141842531,-500.73030307,0.00049315,120]
[331225068,1720141842542,-500.0,0.00049315,120]
[331225069,1720141842551,-500.0,0.00049315,120]
[331225070,1720141842562,-500.0,0.00049315,120]
[331225071,1720141842572,-152.84626941,0.00049315,120]
[331225072,1720141842581,-500.0,0.00049315,120]
[331225073,1720141842592,-500.0,0.00049315,120]
[331225074,1720141842602,-408.07522186,0.00049315,120]
[331225075,1720141842611,-159.2769432,0.00049315,120]
[331225076,1720141842619,-500.0,0.00049315,120]
[331225077,1720141842630,-500.0,0.00049315,120]
[331225078,1720141842639,-500.0,0.00049315,120]
[331225079,1720141842648,-500.0,0.00049315,120]
[331225080,1720141842657,-500.0,0.00049315,120]
[331225081,1720141842666,-500.0,0.00049315,120]
[331225082,1720141842675,-500.0,0.00049315,120]
[331225083,1720141842685,-500.0,0.00049315,120]
[331225084,1720141842694,-500.0,0.00049315,120]
[331225085,1720141842703,-506.40927252,0.00049315,120]
[331225086,1720141842713,-577.08943026,0.00049315,120]
[331225087,1720141842722,-500.0,0.00049315,120]
[331225088,1720141842732,-500.0,0.00049315,120]
[331225089,1720141842742,-500.0,0.00049315,120]
[331225090,1720141842751,-500.0,0.00049315,120]
[331225091,1720141842760,-500.0,0.00049315,120]
[331225092,1720141842769,-489.23993177,0.00049315,120]
[331225093,1720141842779,-501.32742922,0.00049315,120]
[331225094,1720141842788,-500.0,0.00049315,120]
[331225095,1720141842798,-500.0,0.00049315,120]
[331225096,1720141842807,-500.0,0.00049315,120]
[331225097,1720141842816,-500.0,0.00049315,120]
[331225098,1720141842826,-500.0,0.00049315,120]
[331225099,1720141842836,-500.0,0.00049315,120]
[331225100,1720141842845,-500.0,0.00049315,120]
[331225101,1720141842854,-500.0,0.00049315,120]
[331225102,1720141842863,-502.42472393,0.00049315,120]
[331225103,1720141842873,-500.0,0.00049315,120]
[331225104,1720141842888,-531.20723779,0.00049315,120]
[331225105,1720141842898,-500.0,0.00049315,120]
[331225106,1720141842907,-500.0,0.00049315,120]
[331225107,1720141842916,-500.53920741,0.00049315,120]
[331225108,1720141842927,-642.67,0.00049315,120]
[331225109,1720141842935,-500.0,0.00049315,120]
[331225110,1720141842945,-500.0,0.00049315,120]
[331225111,1720141842957,-501.28528056,0.00049315,120]
[331225112,1720141842967,-500.0,0.00049315,120]
[331225113,1720141842977,-500.0,0.00049315,120]
[331225114,1720141842986,-500.0,0.00049315,20]
[331225115,1720141842995,-500.0,0.00049315,120]
[331225116,1720141843005,-500.0,0.00049315,120]
[331225117,1720141843014,-507.93984838,0.00049315,120]
[331225118,1720141843023,-500.0,0.00049315,120]
[331225119,1720141843032,-500.0,0.00049315,120]
[331225120,1720141843041,-500.0,0.00049315,120]
[331225121,1720141843051,-322.00160382,0.00049315,120]
[331225122,1720141843061,-500.0,0.00049315,120]
[331225123,1720141843070,-500.0,0.00049315,120]
[331225124,1720141843079,-500.0,0.00049315,120]
[331225125,1720141843089,-500.0,0.00049315,120]
[331225126,1720141843098,-500.0,0.00049315,120]
[331225127,1720141843107,-500.0,0.00049315,120]
[331225128,1720141843116,-500.0,0.00049315,120]
[331225129,1720141843125,-500.0,0.00049315,120]
[331225130,1720141843141,-500.0,0.00049315,120]
[331225131,1720141843150,-495.62845761,0.00049315,120]
[331225132,1720141843161,-500.0,0.00049315,120]
[331225133,1720141843175,-500.0,0.00049315,120]
[331225134,1720141843189,-500.0,0.00049315,120]
[331225135,1720141843202,-500.0,0.00049315,120]
[331225136,1720141843216,-500.0,0.00049315,120]
[331225137,1720141843226,-500.0,0.00049315,120]
[331225138,1720141843238,-600.0,0.00049315,120]
[331225139,1720141843252,-600.0,0.00049315,120]
[331225140,1720141843263,-600.0,0.00049315,120]
[331225141,1720141843277,-600.0,0.00049315,120]
[331225142,1720141843290,-600.0,0.00049315,120]
[331225143,1720141843304,-600.0,0.00049315,120]
[331225144,1720141843316,-600.0,0.00049315,120]
[331225145,1720141843330,-600.0,0.00049315,120]
[331225146,1720141843344,-600.0,0.00049315,120]
[331225147,1720141843357,-267.88600928,0.00049315,120]
[331225148,1720141843369,-931.71,0.00049315,120]
[331225149,1720141843385,-931.71,0.00049315,120]
[331225150,1720141843397,-931.71,0.00049315,120]
[331225151,1720141843409,-931.71,0.00049315,120]
[331225152,1720141843422,-931.71,0.00049315,120]
[331225153,1720141843434,-931.71,0.00049315,120]
[331225154,1720141843447,-931.71,0.00049315,120]
[331225155,1720141843459,-931.71,0.00049315,120]
[331225156,1720141843470,-931.71,0.00049315,120]
[331225157,1720141843481,-500.0,0.00049315,120]
[331225158,1720141843492,-931.71,0.00049315,120]
[331225159,1720141843503,-931.71,0.00049315,120]
[331225160,1720141843515,-500.0,0.00049315,120]
[331225162,1720141843527,-931.71,0.00049315,120]
[331225164,1720141843540,-931.71,0.00049315,120]
[331225166,1720141843552,-931.71,0.00049315,120]